bitfinex-derivatives/quotes_SOLF0:USTF0_20250409
["timestamp","ask_amount","ask_price","bid_price","bid_amount"]
[1744160128600,6.85625558,104.61,104.58,9.5699]
[1744160128784,0.06600701,104.61,104.58,0.0697812]
[1744160129191,0.06600701,104.61,104.59,9.5691]
[1744160129599,0.06600701,104.61,104.6,40.88]
[1744160129783,0.06600701,104.61,104.6,50.4486]
[1744160129984,6.77828206,104.64,104.6,40.88]
[1744160130186,3.92422728,104.65,104.6,40.88]
[1744160130400,9.2133,104.66,104.62,9.5662]
[1744160130589,16.34060524,104.65,104.62,9.5662]
[1744160130797,9.5648,104.65,104.63,40.86]
[1744160131100,4.5978,104.68,104.63,40.86]
[1744160131288,0.07146814,104.65,104.63,40.93060139]
[1744160131887,10.69067594,104.64,104.58,40.86]
[1744160132097,10.69067594,104.63,104.58,40.86]
[1744160132296,9.5679,104.61,104.58,40.86]
[1744160132497,68.50937574,104.67,104.58,40.86]
[1744160132697,10.67974992,104.66,104.58,40.86]
[1744160132897,10.67974992,104.65,104.58,40.86]
[1744160133094,0.0696923,104.63,104.61,0.06961006]
[1744160133303,9.5695,104.59,104.58,40.86]
[1744160133899,10.66944468,104.62,104.55,40.86]
[1744160134097,51.52944468,104.61,104.55,40.86]
[1744160134294,9.5683,104.61,104.55,40.86]
[1744160134594,0.07030094,104.59,104.57,0.06686794]
[1744160134798,0.07030094,104.59,104.58,40.86]
[1744160135305,40.86,104.67,104.58,40.86]
[1744160135500,9.5646,104.65,104.58,73.13987574]
[1744160135700,9.5646,104.65,104.59,9.2602]
[1744160135995,6.75801485,104.66,104.6,27.64937574]
[1744160136202,14.355,104.67,104.61,40.86]
[1744160136405,0.07262554,104.64,104.63,9.5654]
[1744160136703,0.07262554,104.64,104.62,0.0630193]
[1744160137104,0.07262554,104.64,104.62,9.6291193]
[1744160138406,0.07262554,104.64,104.62,0.0630193]
[1744160139206,0.07262554,104.64,104.62,27.71239504]
[1744160139407,4.7444,104.69,104.62,27.71239504]
[1744160139600,9.1951,104.72,104.64,27.64937574]
[1744160139800,51.94629664,104.74,104.67,27.64937574]
[1744160139801,6.74741361,104.73,104.67,27.64937574]
[1744160140001,56.69069664,104.74,104.68,40.84]
[1744160140201,6.75374878,104.73,104.68,40.84]
[1744160140511,9.4065,104.75,104.69,27.64937574]
[1744160140702,0.06173182,104.72,104.69,27.71377993]
[1744160141210,0.06173182,104.72,104.69,0.06440419]
[1744160141712,9.5614,104.68,104.65,40.82]
[1744160142008,47.93202327,104.71,104.61,504.98]
[1744160142210,10.65184753,104.7,104.61,545.8]
[1744160142506,47.56716898,104.69,104.61,545.8]
[1744160142703,6.74716898,104.68,104.61,545.8]
[1744160142903,0.0656029,104.66,104.64,0.06559797]
[1744160143405,9.5645,104.65,104.64,0.06559797]
[1744160143608,57.19723166,104.66,104.61,40.82]
[1744160143807,6.75162876,104.65,104.58,40.82]
[1744160144003,6.75162876,104.64,104.58,40.82]
[1744160144308,50.3863,104.63,104.58,40.82]
[1744160144509,9.5663,104.63,104.58,40.82]
[1744160144711,4.7955,104.64,104.59,0.06279944]
[1744160144712,0.0672335,104.62,104.59,0.06279944]
[1744160146503,9.5681,104.61,104.59,0.06279944]
[1744160146699,0.0672335,104.62,104.59,0.06279944]
[1744160147210,6.83159263,104.62,104.59,0.06279944]
[1744160147709,9.5686,104.6,104.59,0.06279944]
[1744160148309,6.77548312,104.61,104.55,40.82]
[1744160148504,10.69714078,104.63,104.55,40.82]
[1744160148705,6.77599256,104.62,104.55,40.82]
[1744160149006,9.5677,104.61,104.57,9.5705]
[1744160149210,3.92114822,104.63,104.58,40.82]
[1744160149512,9.567,104.62,104.59,9.5691]
[1744160149706,0.06968787,104.62,104.59,0.06922425]
[1744160150109,0.06968787,104.62,104.59,44.99357001]
[1744160150313,0.06968787,104.62,104.6,9.5686]
[1744160150509,0.06968787,104.62,104.61,40.82]
[1744160152615,0.06968787,104.62,104.61,50.3877]
[1744160154013,50.3827,104.67,104.61,40.82]
[1744160154221,4.7614,104.69,104.61,85.74434576]
[1744160154418,4.7614,104.69,104.63,44.92434576]
[1744160154419,6.78036422,104.69,104.63,44.92434576]
[1744160154716,16.34026422,104.7,104.67,9.5616]
[1744160154919,6.78036422,104.7,104.64,45.3314]
[1744160155119,6.78036422,104.7,104.64,54.8958]
[1744160155416,0.06060528,104.68,104.66,0.06252091]
[1744160156715,0.06060528,104.68,104.66,9.62562091]
[1744160157118,0.06060528,104.68,104.66,0.06252091]
[1744160157621,9.5622,104.67,104.66,0.06252091]
[1744160158022,9.62270528,104.68,104.66,0.06252091]
[1744160158221,0.06060528,104.68,104.66,0.06252091]
[1744160158627,9.5622,104.67,104.66,0.06252091]
[1744160159817,9.62230528,104.68,104.66,0.06252091]
[1744160160413,9.5622,104.67,104.66,0.06252091]
[1744160161028,0.06060528,104.68,104.66,0.06252091]
[1744160161218,0.06060528,104.68,104.67,40.8]
[1744160162118,6.78858844,104.71,104.69,9.5602]
[1744160162318,4.5457,104.74,104.67,85.72434576]
[1744160162526,4.5457,104.74,104.68,8.9682]
[1744160162922,11.33455355,104.74,104.68,8.9682]
[1744160163118,9.5569,104.73,104.7,9.5589]
[1744160163319,9.5569,104.73,104.7,50.42895732]
[1744160163320,0.06569144,104.72,104.7,50.42895732]
[1744160163527,9.5561,104.74,104.71,9.5579]
[1744160163829,10.71073242,104.76,104.7,40.87005732]
[1744160164127,9.5558,104.74,104.71,9.5581]
[1744160164431,6.78416393,104.76,104.7,40.8]
[1744160164629,10.70985913,104.76,104.7,40.8]
[1744160164825,9.5571,104.73,104.72,0.07370321]
[1744160165820,0.0683638,104.74,104.7,40.8]
[1744160166323,9.5572,104.73,104.7,40.8]
[1744160166629,9.5572,104.73,104.7,50.359]
[1744160166820,9.5577,104.72,104.7,40.8]
[1744160167020,9.5577,104.72,104.7,40.86188442]
[1744160167229,0.0683638,104.74,104.7,40.86188442]
[1744160167922,9.5582,104.72,104.7,40.86188442]
[1744160168732,9.5585,104.71,104.7,40.86188442]
[1744160169229,0.06651911,104.72,104.7,40.86188442]
[1744160169429,9.5585,104.71,104.7,40.8]
[1744160169627,9.5585,104.71,104.7,40.87276573]
[1744160170523,9.5585,104.71,104.7,0.07276573]
[1744160173241,20.29674742,104.71,104.7,0.07276573]
[1744160176646,20.29869186,104.71,104.7,0.07276573]
[1744160177043,24.73499186,104.71,104.7,0.07276573]
[1744160177247,9.5613,104.68,104.67,40.76]
[1744160177842,4.4363,104.71,104.57,28.7133]
[1744160177843,10.74437244,104.7,104.62,27.6017425]
[1744160178043,51.50437244,104.69,104.63,40.76]
[1744160178236,10.74437244,104.68,104.63,40.76]
[1744160178443,10.74437244,104.67,104.6,40.76]
[1744160178647,51.50437244,104.66,104.6,40.76]
[1744160178850,9.5677,104.61,104.6,40.76]
[1744160179555,9.63308127,104.62,104.6,40.76]
[1744160180148,9.63308127,104.62,104.6,40.82841525]
[1744160180846,9.5677,104.61,104.6,40.82841525]
[1744160181056,9.5677,104.61,104.6,0.06841525]
[1744160181457,0.06578127,104.62,104.61,9.5677]
[1744160181759,19.86411776,104.68,104.6,40.84841525]
[1744160182052,9.5644,104.65,104.62,9.5663]
[1744160182440,9.5651,104.64,104.61,9.5673]
[1744160182853,0.0632186,104.64,104.61,0.06436767]
[1744160183056,9.5677,104.62,104.61,0.06436767]
[1744160184260,0.0632186,104.64,104.61,0.06436767]
[1744160184555,9.5664,104.63,104.61,0.06436767]
[1744160186153,9.6286186,104.64,104.61,9.63196767]
[1744160186351,0.0632186,104.64,104.61,40.84436767]
[1744160187247,9.5659,104.63,104.61,40.84436767]
[1744160187557,0.0632186,104.64,104.61,40.84436767]
[1744160187951,9.5668,104.62,104.61,40.84436767]
[1744160188455,9.5668,104.62,104.61,0.06436767]
[1744160188958,9.5664,104.63,104.61,0.06436767]
[1744160190358,9.5668,104.62,104.61,0.06436767]
[1744160192656,9.5695,104.59,104.58,40.78]
[1744160193474,9.572,104.57,104.55,40.8]
[1744160193764,47.58477077,104.6,104.52,40.8]
[1744160193967,47.58477077,104.6,104.5,14.2]
[1744160193968,0.07228866,104.57,104.5,14.2]
[1744160194166,40.87228866,104.57,104.5,14.2]
[1744160194470,40.8,104.57,104.5,14.2]
[1744160194765,9.5749,104.54,104.5,14.2]
[1744160194964,11.6550027,104.56,104.5,14.2]
[1744160195174,16.4682027,104.56,104.48,40.8]
[1744160195471,0.06693051,104.54,104.52,0.06532312]
[1744160195665,9.575,104.53,104.52,0.06532312]
[1744160196663,0.06693051,104.54,104.52,0.06532312]
[1744160197265,0.06693051,104.54,104.52,9.64062312]
[1744160197774,0.06693051,104.54,104.53,9.575]
[1744160199771,0.06693051,104.54,104.52,9.64072312]
[1744160200074,0.06693051,104.54,104.52,0.06532312]
[1744160200978,0.06693051,104.54,104.53,9.575]
[1744160201973,0.06693051,104.54,104.52,9.64102312]
[1744160202278,0.06693051,104.54,104.52,0.06532312]
[1744160202776,9.64113051,104.54,104.52,0.06532312]
[1744160203979,0.06693051,104.54,104.52,0.06532312]
[1744160204382,0.06693051,104.54,104.52,9.64072312]
[1744160205279,0.06693051,104.54,104.53,9.575]
[1744160206979,68.3817425,104.63,104.57,9.5713]
[1744160207283,9.569,104.6,104.57,9.5713]
[1744160207882,9.5696,104.59,104.56,50.3517]
[1744160208083,9.2884,104.63,104.56,40.78]
[1744160208379,4.4998,104.66,104.58,27.6017425]
[1744160208582,4.4998,104.66,104.59,40.78]
[1744160209081,9.5646,104.65,104.61,9.5676]
[1744160209281,4.4998,104.66,104.59,40.78]
[1744160209478,0.06374138,104.64,104.62,0.07015961]
[1744160209982,9.62914138,104.64,104.62,0.07015961]
[1744160211081,0.06374138,104.64,104.62,9.63605961]
[1744160211280,0.06374138,104.64,104.62,40.85015961]
[1744160211589,9.5659,104.63,104.62,40.85015961]
[1744160212085,0.06374138,104.64,104.62,40.85015961]
[1744160212585,0.06374138,104.64,104.62,50.41655961]
[1744160212785,0.06374138,104.64,104.62,40.85015961]
[1744160213381,9.62914138,104.64,104.62,40.85015961]
[1744160213686,0.06374138,104.64,104.62,40.85015961]
[1744160214190,9.5659,104.63,104.62,0.07015961]
[1744160215490,0.06374138,104.64,104.62,0.07015961]
[1744160215689,0.06374138,104.64,104.62,40.83015961]
[1744160215994,0.06374138,104.64,104.62,50.39635961]
[1744160216192,34.34467065,104.63,104.51,27.6017425]
[1744160216496,10.6450843,104.62,104.51,41.3062425]
[1744160216696,51.4050843,104.62,104.51,13.7045]
[1744160216895,16.13773327,104.61,104.51,13.7045]
[1744160217098,10.63826647,104.6,104.52,50.3354]
[1744160217393,0.07365238,104.57,104.55,0.06478452]
[1744160217796,9.5723,104.56,104.55,0.06478452]
[1744160218900,0.07365238,104.57,104.55,0.06478452]
[1744160219501,0.07365238,104.57,104.55,9.63748452]
[1744160219806,0.07365238,104.57,104.55,0.06478452]
[1744160220204,0.07365238,104.57,104.55,50.41758452]
[1744160220506,0.07365238,104.57,104.55,40.84478452]
[1744160220708,0.07365238,104.57,104.55,0.06478452]
[1744160221803,0.07365238,104.57,104.55,9.63758452]
[1744160222196,0.07365238,104.57,104.55,0.06478452]
[1744160222598,9.64535238,104.57,104.55,0.06478452]
[1744160222902,9.64535238,104.57,104.48,68.3817425]
[1744160222903,10.68445178,104.56,104.48,68.3817425]
[1744160223111,6.76816834,104.55,104.48,45.5903]
[1744160223294,6.7698765,104.54,104.48,45.5903]
[1744160223497,3.91801903,104.54,104.49,9.5785]
[1744160223806,9.4926,104.55,104.48,45.5903]
[1744160223994,0.07278751,104.53,104.5,9.64186081]
[1744160224191,9.64788751,104.53,104.51,40.78]
[1744160224398,0.07278751,104.53,104.51,40.78]
[1744160224601,0.07278751,104.53,104.52,9.5759]
[1744160226297,0.07278751,104.53,104.51,50.3566]
[1744160226600,9.5759,104.52,104.51,40.78]
[1744160227607,0.07278751,104.53,104.51,40.78]
[1744160228209,0.07278751,104.53,104.52,9.5759]
[1744160228507,9.4926,104.59,104.51,40.78]
[1744160228701,10.69388729,104.58,104.51,40.78]
[1744160228898,9.5738,104.55,104.52,9.5754]
[1744160229100,6.7740886,104.56,104.51,40.78]
[1744160229309,3.91923194,104.57,104.51,40.78]
[1744160229512,9.575,104.53,104.52,0.07339458]
[1744160230409,0.06572353,104.55,104.52,0.07339458]
[1744160230909,9.575,104.53,104.52,0.07339458]
[1744160232611,0.06572353,104.55,104.52,0.07339458]
[1744160233204,3.98836621,104.55,104.52,0.07339458]
[1744160233404,9.5745,104.54,104.52,0.07339458]
[1744160233605,0.06572353,104.55,104.52,0.07339458]
[1744160234310,3.98713083,104.55,104.52,0.07339458]
[1744160234505,9.5745,104.54,104.52,0.07339458]
[1744160234911,0.06572353,104.55,104.52,0.07339458]
[1744160235210,0.06572353,104.55,104.53,9.575]
[1744160235407,0.06572353,104.55,104.52,0.07339458]
[1744160238022,40.74,104.64,104.52,27.67513708]
[1744160238209,9.0274,104.62,104.54,27.6017425]
[1744160238409,10.72294346,104.61,104.55,40.74]
[1744160238709,6.79236214,104.6,104.58,9.57]
[1744160239012,9.5681,104.61,104.58,9.57]
[1744160239210,0.06750892,104.6,104.58,0.07223459]
[1744160240017,9.63670892,104.6,104.58,0.07223459]
[1744160240420,0.06750892,104.6,104.58,9.64233459]
[1744160241119,3.99616307,104.6,104.58,0.07223459]
[1744160241305,0.06750892,104.6,104.58,0.07223459]
[1744160241510,3.99616307,104.6,104.58,0.07223459]
[1744160242018,0.06750892,104.6,104.58,0.07223459]
[1744160242316,9.63690892,104.6,104.58,0.07223459]
[1744160244214,9.5695,104.59,104.58,0.07223459]
[1744160244619,9.63660892,104.6,104.58,0.07223459]
[1744160245117,0.06750892,104.6,104.58,0.07223459]
[1744160245314,9.5695,104.59,104.58,0.07223459]
[1744160248327,16.36469496,104.59,104.58,0.07223459]
[1744160248624,9.5695,104.59,104.58,0.07223459]
[1744160250026,9.63670892,104.6,104.58,0.07223459]
[1744160250319,0.06750892,104.6,104.58,40.81223459]
[1744160251918,4.00155326,104.6,104.58,40.81223459]
[1744160252124,9.63660892,104.6,104.58,50.38233459]
[1744160252327,0.06750892,104.6,104.58,40.81223459]
[1744160252625,9.63660892,104.6,104.58,50.38253459]
[1744160252824,0.06750892,104.6,104.58,50.38253459]
[1744160253216,0.06750892,104.6,104.59,9.5695]
[1744160253929,0.06750892,104.6,104.58,40.81223459]
[1744160254319,9.63650892,104.6,104.58,40.81223459]
[1744160254628,0.06750892,104.6,104.58,50.38223459]
[1744160255825,9.63620892,104.6,104.58,50.38223459]
[1744160256430,0.06750892,104.6,104.58,50.38223459]
[1744160257129,0.06750892,104.6,104.58,40.81223459]
[1744160257826,9.63650892,104.6,104.58,40.81223459]
[1744160258021,9.63650892,104.6,104.58,50.38243459]
[1744160258735,0.06750892,104.6,104.59,9.5695]
[1744160268642,0.06750892,104.6,104.58,50.38223459]
[1744160268836,0.06750892,104.6,104.58,40.81223459]
[1744160269034,0.06750892,104.6,104.58,0.07223459]
[1744160269442,20.28655964,104.59,104.58,0.07223459]
[1744160269648,6.78869125,104.59,104.58,0.07223459]
[1744160270047,16.35819125,104.59,104.58,0.07223459]
[1744160270538,16.36184267,104.59,104.58,0.07223459]
[1744160270742,9.5695,104.59,104.58,0.07223459]
[1744160271043,9.5695,104.59,104.54,40.68]
[1744160271044,9.5727,104.56,104.54,40.68]
[1744160271243,10.72368356,104.58,104.54,40.68]
[1744160271443,9.573,104.56,104.54,40.68]
[1744160272054,9.64459638,104.56,104.54,40.74823828]
[1744160273145,0.07159638,104.56,104.54,40.74823828]
[1744160273947,0.07159638,104.56,104.55,9.5732]
[1744160277141,0.07159638,104.56,104.54,58.03669262]
[1744160277547,0.07159638,104.56,104.55,9.5732]
[1744160279448,9.1215,104.61,104.54,58.03669262]
[1744160279651,10.75499323,104.6,104.56,17.28845434]
[1744160279843,18.69,104.61,104.58,9.57]
[1744160280039,10.75267616,104.6,104.58,9.57]
[1744160280344,9.569,104.6,104.57,40.68]
[1744160280649,9.569,104.6,104.58,0.06338877]
[1744160280650,9.63756273,104.6,104.58,0.06338877]
[1744160281041,9.5695,104.59,104.58,0.06338877]
[1744160281350,20.33148156,104.59,104.58,0.06338877]
[1744160283456,15.39988156,104.59,104.54,40.68]
[1744160283652,10.76198156,104.58,104.54,40.68]
[1744160283956,20.33388156,104.57,104.54,50.254]
[1744160284157,6.81722099,104.56,104.54,40.68]
[1744160284459,4.6379,104.59,104.57,9.5709]
[1744160284746,10.76779439,104.58,104.54,40.68]
[1744160285053,9.5724,104.56,104.55,0.0718502]
[1744160285255,16.39321435,104.56,104.55,0.0718502]
[1744160285457,20.33904394,104.56,104.55,0.0718502]
[1744160286243,10.76664394,104.56,104.55,0.0718502]
[1744160286854,20.33894394,104.56,104.55,0.0718502]
[1744160287654,10.76664394,104.56,104.55,9.6450502]
[1744160288247,0.06260011,104.57,104.55,0.0718502]
[1744160289654,0.06260011,104.57,104.56,9.5723]
[1744160291755,16.43666485,104.57,104.55,0.0718502]
[1744160291955,0.06260011,104.57,104.55,0.0718502]
[1744160292352,0.06260011,104.57,104.56,9.5723]
[1744160293455,6.8630278,104.57,104.55,0.0718502]
[1744160293661,0.06260011,104.57,104.55,0.0718502]
[1744160293859,9.63430011,104.57,104.55,9.6450502]
[1744160294968,9.5723,104.56,104.55,0.0718502]
[1744160295252,20.28735547,104.56,104.55,0.0718502]
[1744160296960,10.71505547,104.56,104.55,9.6450502]
[1744160297156,0.06260011,104.57,104.55,0.0718502]
[1744160297755,0.06260011,104.57,104.55,9.6444502]
[1744160298361,0.06260011,104.57,104.56,9.5723]
[1744160298562,10.78455458,104.57,104.56,9.5723]
[1744160298864,0.06260011,104.57,104.55,0.0718502]
[1744160299164,0.06260011,104.57,104.56,9.5723]
[1744160304449,12.94571331,104.68,104.56,26.84845434]
[1744160304653,10.72273847,104.67,104.63,17.28845434]
[1744160304854,10.72273847,104.66,104.64,9.5649]
[1744160305051,6.7920576,104.65,104.64,9.5649]
[1744160305255,3.93193639,104.67,104.63,57.92845434]
[1744160305462,17.74771331,104.68,104.63,57.92845434]
[1744160305769,0.06976018,104.66,104.64,0.07004009]
[1744160306266,0.06976018,104.66,104.65,9.564]
[1744160306766,0.06976018,104.66,104.65,26.85245434]
[1744160308256,0.06976018,104.66,104.65,9.564]
[1744160309567,11.15695347,104.71,104.69,9.5604]
[1744160309866,4.6113,104.74,104.69,17.28845434]
[1744160310070,9.0857,104.75,104.71,17.28845434]
[1744160310367,9.0857,104.75,104.72,40.62]
[1744160310668,0.06413908,104.74,104.72,0.06163493]
[1744160310857,6.81041403,104.74,104.72,0.06163493]
[1744160311168,9.5624,104.67,104.64,545.56]
[1744160311369,17.28845434,104.71,104.64,545.56]
[1744160311662,9.1397,104.7,104.64,562.84845434]
[1744160311861,9.1046,104.74,104.68,17.28845434]
[1744160312061,109.67130758,104.79,104.72,9.5575]
[1744160312271,19.74623419,104.78,104.72,40.6]
[1744160312565,10.70985835,104.77,104.72,40.6]
[1744160312766,10.70985835,104.77,104.74,0.06768457]
[1744160312966,0.06822416,104.77,104.74,0.06768457]
[1744160313264,0.06822416,104.77,104.75,40.6]
[1744160313469,9.554,104.76,104.75,40.6]
[1744160313662,0.06822416,104.77,104.74,0.06768457]
[1744160313967,9.5549,104.75,104.74,0.06768457]
[1744160314562,0.06822416,104.77,104.74,0.06768457]
[1744160315668,9.62202416,104.77,104.74,0.06768457]
[1744160315966,9.62202416,104.77,104.74,9.62338457]
[1744160316366,0.06822416,104.77,104.74,0.06768457]
[1744160316966,9.62132416,104.77,104.74,0.06768457]
[1744160317167,0.06822416,104.77,104.74,0.06768457]
[1744160318074,9.5549,104.75,104.74,0.06768457]
[1744160320475,9.5545,104.76,104.74,0.06768457]
[1744160322272,9.5549,104.75,104.74,0.06768457]
[1744160323472,0.06822416,104.77,104.74,0.06768457]
[1744160323977,9.5548,104.76,104.74,0.06768457]
[1744160324171,0.06822416,104.77,104.74,0.06768457]
[1744160324475,9.5577,104.72,104.7,40.52]
[1744160325066,66.89335434,104.76,104.7,40.52]
[1744160325675,9.5567,104.73,104.72,0.0718816]
[1744160326071,9.5569,104.73,104.7,40.52]
[1744160326277,17.35966821,104.74,104.67,544.92]
[1744160326578,40.52,104.73,104.67,40.52]
[1744160326772,9.5613,104.68,104.67,40.52]
[1744160328576,0.06099627,104.69,104.67,40.52]
[1744160328873,66.89335434,104.76,104.67,40.52]
[1744160329074,9.5572,104.73,104.7,9.559]
[1744160329275,9.5572,104.73,104.7,50.079]
[1744160329873,9.62205874,104.73,104.7,50.14900083]
[1744160331978,0.06485874,104.73,104.7,40.59000083]
[1744160332387,9.5585,104.71,104.7,40.59000083]
[1744160332565,9.5585,104.71,104.7,0.07000083]
[1744160333370,0.06485874,104.73,104.7,40.59000083]
[1744160333876,9.62245874,104.73,104.7,50.14900083]
[1744160334175,0.06485874,104.73,104.7,40.59000083]
[1744160334476,0.06485874,104.73,104.7,0.07000083]
[1744160336078,27.59970626,104.72,104.64,40.52]
[1744160336263,15.60086962,104.71,104.64,40.52]
[1744160336470,40.52,104.7,104.64,40.52]
[1744160337180,0.07305597,104.68,104.66,0.06230086]
[1744160337571,9.5622,104.67,104.66,0.06230086]
[1744160338079,0.07305597,104.68,104.66,0.06230086]
[1744160338281,9.63475597,104.68,104.66,0.06230086]
[1744160338482,0.07305597,104.68,104.66,0.06230086]
[1744160338679,9.63475597,104.68,104.66,0.06230086]
[1744160339384,0.07305597,104.68,104.66,0.06230086]
[1744160340075,9.63495597,104.68,104.66,0.06230086]
[1744160340577,0.07305597,104.68,104.66,0.06230086]
[1744160340980,0.07305597,104.68,104.66,9.62500086]
[1744160341580,9.63435597,104.68,104.66,0.06230086]
[1744160341983,9.5622,104.67,104.66,0.06230086]
[1744160342481,0.07305597,104.68,104.66,0.06230086]
[1744160342684,0.07305597,104.68,104.66,9.62540086]
[1744160343482,0.07305597,104.68,104.66,0.06230086]
[1744160344483,9.63485597,104.68,104.66,0.06230086]
[1744160345380,9.5622,104.67,104.66,0.06230086]
[1744160348184,0.07305597,104.68,104.66,0.06230086]
[1744160348678,9.5622,104.67,104.66,0.06230086]
[1744160351590,20.20645062,104.67,104.66,0.06230086]
[1744160352391,9.5672,104.62,104.59,13.9776]
[1744160352690,10.64425062,104.66,104.6,40.48]
[1744160352884,10.64425062,104.65,104.6,50.0481]
[1744160353082,9.5671,104.62,104.6,40.48]
[1744160353291,6.74066816,104.63,104.6,40.48]
[1744160353487,0.07263197,104.63,104.6,40.48]
[1744160353688,9.5677,104.61,104.6,40.48]
[1744160354595,9.5694,104.6,104.57,554.691]
[1744160355094,9.63529212,104.6,104.58,9.5704]
[1744160355578,9.63529212,104.6,104.57,554.6908]
[1744160356188,0.06589212,104.6,104.58,9.5703]
[1744160356589,0.06589212,104.6,104.57,562.40479622]
[1744160357582,9.5653,104.64,104.57,562.40479622]
[1744160357783,9.5653,104.64,104.59,17.28479622]
[1744160358096,16.28295803,104.64,104.61,9.5675]
[1744160358400,9.5659,104.63,104.6,40.48]
[1744160358589,9.5659,104.63,104.6,50.0482]
[1744160358789,9.63211626,104.63,104.6,50.12144397]
[1744160359702,9.5669,104.62,104.6,40.55324397]
[1744160359993,0.06621626,104.63,104.6,0.07324397]
[1744160360293,10.66606925,104.63,104.56,59.4572]
[1744160360493,10.59985299,104.63,104.56,49.8854]
[1744160360695,9.5702,104.59,104.56,59.4573]
[1744160360896,9.5702,104.59,104.56,49.8854]
[1744160361091,4.7716,104.62,104.56,49.8854]
[1744160361291,0.06633931,104.59,104.57,9.5709]
[1744160362394,0.06633931,104.59,104.58,9.5704]
[1744160362603,40.5,104.67,104.57,27.66841037]
[1744160362789,10.59435094,104.65,104.57,27.66841037]
[1744160363489,9.5673,104.62,104.57,27.66841037]
[1744160363890,0.06946798,104.61,104.58,0.06130594]
[1744160364188,45.2716,104.67,104.59,68.16841037]
[1744160364388,4.7716,104.67,104.59,68.16841037]
[1744160364699,9.5636,104.66,104.63,9.5654]
[1744160364898,4.7716,104.67,104.62,40.5]
[1744160365195,45.2716,104.67,104.59,9.5688]
[1744160365402,45.2716,104.67,104.58,40.5]
[1744160365403,10.66985538,104.66,104.58,40.5]
[1744160365597,6.71652317,104.65,104.58,40.5]
[1744160365793,9.5682,104.61,104.58,50.0701]
[1744160365995,40.5,104.64,104.58,50.0701]
[1744160366194,6.71572195,104.63,104.58,50.0701]
[1744160366591,0.07255834,104.62,104.59,0.06454261]
[1744160366890,4.7716,104.67,104.59,27.73295298]
[1744160367091,10.60856611,104.68,104.59,27.66841037]
[1744160367398,10.60856611,104.67,104.59,27.66841037]
[1744160367600,16.28327157,104.66,104.59,27.66841037]
[1744160367800,9.5635,104.66,104.63,9.565]
[1744160367998,9.5626,104.67,104.63,40.5]
[1744160368190,0.07316962,104.66,104.63,40.56471444]
[1744160368392,0.07316962,104.66,104.64,9.5644]
[1744160368690,0.07316962,104.66,104.63,40.56471444]
[1744160368888,0.07316962,104.66,104.65,9.564]
[1744160369602,8.9409,104.72,104.63,68.23312481]
[1744160369792,10.63077549,104.71,104.63,68.23312481]
[1744160370101,6.73366149,104.71,104.65,27.66841037]
[1744160370398,10.6313644,104.73,104.66,45.0375]
[1744160370594,16.29166149,104.72,104.69,9.5599]
[1744160370801,0.07021175,104.71,104.69,40.5]
[1744160371101,9.5595,104.7,104.69,40.5]
[1744160371297,9.5595,104.7,104.69,0.07227079]
[1744160374203,16.28862558,104.7,104.69,0.07227079]
[1744160374501,9.5595,104.7,104.69,0.07227079]
[1744160375601,9.62931175,104.71,104.69,0.07227079]
[1744160375805,0.07021175,104.71,104.69,40.55227079]
[1744160376197,0.07021175,104.71,104.69,50.11217079]
[1744160376999,0.07021175,104.71,104.7,9.5595]
[1744160377203,49.4209,104.76,104.69,40.55227079]
[1744160377204,10.63902903,104.75,104.69,40.55227079]
[1744160377389,10.63902903,104.74,104.7,4.7154]
[1744160377593,9.5562,104.74,104.71,9.5581]
[1744160378088,20.19278255,104.74,104.71,9.5581]
[1744160378289,9.62458515,104.74,104.71,9.62986411]
[1744160378487,51.10838095,104.73,104.66,4.5375]
[1744160378696,10.62838095,104.72,104.65,40.48]
[1744160378897,9.5609,104.69,104.65,40.48]
[1744160379102,8.9409,104.76,104.65,68.14841037]
[1744160379401,15.28077897,104.75,104.65,50.044]
[1744160379599,10.62537897,104.74,104.65,40.48]
[1744160379799,0.06143411,104.71,104.69,0.06932405]
[1744160379988,9.5602,104.7,104.69,0.06932405]
[1744160382304,0.06143411,104.71,104.69,0.06932405]
[1744160382305,9.62043411,104.71,104.69,0.06932405]
[1744160382495,0.06143411,104.71,104.69,0.06932405]
[1744160384205,9.5595,104.7,104.69,0.06932405]
[1744160385303,0.06143411,104.71,104.69,0.06932405]